fUSD/lending_fUSD_20260115
["ID","MTS","AMOUNT","RATE_DAILY","PERIOD"]
[402077452,1768511445300,-2000.0,0.00020166,2]
[402077453,1768511445309,-359.76179104,0.00020166,2]
[402077454,1768511445318,-500.0,0.00020166,2]
[402077455,1768511445328,-3000.0,0.00020166,2]
[402077456,1768511445337,-2000.0,0.00020166,2]
[402077457,1768511445346,-3000.0,0.00020166,2]
[402077458,1768511445355,-500.0,0.00020166,2]
[402077459,1768511445364,-2000.0,0.00020166,2]
[402077460,1768511445374,-2593.8973189,0.00020166,2]
[402077461,1768511445383,-500.0,0.00020166,2]
[402077462,1768511445392,-2000.0,0.00020166,2]
[402077463,1768511445401,-500.0,0.00020166,2]
[402077464,1768511445411,-2000.0,0.00020166,2]
[402077465,1768511445420,-500.0,0.00020166,2]
[402077466,1768511445430,-2000.0,0.00020166,2]
[402077467,1768511445439,-322.6107,0.00020166,2]
[402077468,1768511445451,-2000.0,0.00020166,2]
[402077469,1768511445460,-2000.0,0.00020166,2]
[402077470,1768511445470,-690.60823039,0.00020166,2]
[402077471,1768511445479,-721.12765535,0.00020166,2]
[402077472,1768511445489,-500.0,0.00020166,2]
[402077473,1768511445500,-500.0,0.00020166,2]
[402077474,1768511445510,-500.0,0.00020166,2]
[402077475,1768511445520,-500.0,0.00020166,2]
[402077476,1768511445530,-500.0,0.00020166,2]
[402077477,1768511445539,-574.12855637,0.00020166,2]
[402077478,1768511445548,-500.0,0.00020166,2]
[402077479,1768511445557,-500.0,0.00020166,2]
[402077480,1768511445567,-500.0,0.00020166,2]
[402077481,1768511445577,-500.0,0.00020166,2]
[402077482,1768511445587,-500.0,0.00020166,2]
[402077483,1768511445597,-174.61919141,0.00020166,2]
[402077484,1768511445607,-500.0,0.00020166,2]
[402077485,1768511445616,-500.0,0.00020166,2]
[402077486,1768511445625,-500.0,0.00020166,2]
[402077487,1768511445635,-500.0,0.00020166,2]
[402077488,1768511445645,-500.0,0.00020166,2]
[402077489,1768511445653,-500.0,0.00020166,2]
[402077490,1768511445663,-620.0,0.00020166,2]
[402077491,1768511445673,-589.66560827,0.00020166,2]
[402077492,1768511445682,-500.0,0.00020166,2]
[402077493,1768511445691,-500.0,0.00020166,2]
[402077494,1768511445701,-500.0,0.00020166,2]
[402077495,1768511445711,-500.0,0.00020166,2]
[402077496,1768511445721,-500.0,0.00020166,2]
[402077497,1768511445730,-500.0,0.00020166,2]
[402077498,1768511445740,-500.0,0.00020166,2]
[402077499,1768511445749,-500.0,0.00020166,2]
[402077500,1768511445759,-500.0,0.00020166,2]
[402077501,1768511445768,-500.0,0.00020166,2]
[402077502,1768511445778,-500.0,0.00020166,2]
[402077503,1768511445787,-2500.0,0.00020166,2]
[402077504,1768511445797,-500.0,0.00020166,2]
[402077505,1768511445807,-2500.0,0.00020166,2]
[402077506,1768511445816,-500.0,0.00020166,2]
[402077507,1768511445826,-2500.0,0.00020166,2]
[402077508,1768511445836,-500.0,0.00020166,2]
[402077509,1768511445845,-2500.0,0.00020166,2]
[402077510,1768511445855,-500.0,0.00020166,2]
[402077511,1768511445864,-2500.0,0.00020166,2]
[402077512,1768511445873,-500.0,0.00020166,2]
[402077513,1768511445883,-2500.0,0.00020166,2]
[402077514,1768511445893,-500.0,0.00020166,2]
[402077515,1768511445902,-2500.0,0.00020166,2]
[402077516,1768511445911,-2500.0,0.00020166,2]
[402077517,1768511445921,-1056.37014812,0.00020166,2]
[402077518,1768511445930,-2500.0,0.00020166,2]
[402077519,1768511445940,-2500.0,0.00020166,2]
[402077520,1768511445949,-151.0,0.00020166,2]
[402077521,1768511445959,-3000.0,0.00020166,2]
[402077522,1768511445969,-156.587,0.00020166,2]
[402077523,1768511445979,-3000.0,0.00020166,2]
[402077524,1768511445988,-2500.0,0.00020166,2]
[402077525,1768511445998,-162.380719,0.00020166,2]
[402077526,1768511446007,-3000.0,0.00020166,2]
[402077527,1768511446016,-155.82642991,0.00020166,2]
[402077528,1768511446025,-3000.0,0.00020166,2]
[402077529,1768511446035,-151.0,0.00020166,2]
[402077530,1768511446044,-3000.0,0.00020166,2]
[402077531,1768511446056,-3000.0,0.00020166,2]
[402077532,1768511446066,-3000.0,0.00020166,2]
[402077533,1768511446075,-3000.0,0.00020166,2]
[402077534,1768511446084,-3000.0,0.00020166,2]
[402077535,1768511446094,-3000.0,0.00020166,2]
[402077536,1768511446104,-2718.44948238,0.00020166,2]
[402077537,1768511446113,-847.86320749,0.00020181,2]
[402077538,1768511446124,-1458.50405972,0.0002026,2]
[402077539,1768511446133,-2610.07152747,0.00020284,10]
[402077540,1768511446143,-166.66,0.00020389,2]
[402077541,1768511446151,-1654.15,0.0002039,2]
[402077542,1768511446161,-1399.3,0.00020477,2]
[402077543,1768511446170,-1654.15,0.00020664,2]
[402077544,1768511446179,-25513.80877808,0.00020692,2]
[402077545,1768511446189,-373.07297731,0.00020714,2]
[402077546,1768511446199,-355.72933052,0.00020714,2]
[402077547,1768511446208,-181.08010149,0.00020714,2]
[402077548,1768511446218,-151.0,0.00020714,2]
[402077549,1768511446227,-1654.15,0.00020938,2]
[402077550,1768511446236,-166.66,0.00020984,2]
[402077551,1768511446246,-250.0,0.00021028,2]
[402077552,1768511446255,-3083.5042564,0.00021033,2]
[402077553,1768511446264,-1654.15,0.00021212,2]
[402077554,1768511446274,-170.28,0.00021248,2]
[402077555,1768511446283,-386.87667747,0.00021262,2]
[402077556,1768511446292,-187.78006525,0.00021262,2]
[402077557,1768511446301,-151.0,0.00021262,2]
[402077558,1768511446311,-1000.0,0.00021391,2]
[402077559,1768511446320,-823.0,0.00021474,2]
[402077560,1768511446330,-223.0,0.00021474,2]
[402077561,1768511446339,-1533.0,0.00021477,2]
[402077562,1768511446348,-1654.15,0.00021486,2]
[402077563,1768511446358,-334.5472959,0.00021535,2]
[402077564,1768511446367,-642.94,0.00021535,2]
[402077565,1768511446376,-2610.07152747,0.00021601,15]
[402077566,1768511446386,-19134.12399712,0.00021605,2]
[402077567,1768511446395,-716.75732672,0.00021642,2]
[402077568,1768511446404,-195.4941314,0.00021659,2]
[402077569,1768511446414,-688.0227985,0.0002171,2]
[402077570,1768511446423,-1654.27543947,0.0002176,2]
[402077571,1768511446441,-3292.0,0.00021798,2]
[402077572,1768511446451,-401.19111454,0.0002181,2]
[402077573,1768511446461,-194.72792766,0.0002181,2]
[402077574,1768511446470,-151.0,0.0002181,2]
[402077575,1768511446480,-5000.0,0.00021918,2]
[402077576,1768511446489,-1600.0,0.00022012,2]
[402077577,1768511446499,-416.03518578,0.00022358,2]
[402077578,1768511446509,-201.93286099,0.00022358,2]
[402077580,1768511446518,-248.38210406,0.00022358,2]
[402077581,1768511446528,-195.58287231,0.0002261,2]
[402077583,1768511446538,-1399.3,0.00022649,2]
[402077585,1768511446547,-170.28,0.00022665,2]
[402077586,1768511446557,-25513.80877808,0.0002281,2]
[402077587,1768511446566,-334.5472959,0.00022904,2]
[402077588,1768511446576,-666.72878,0.00022904,2]
[402077589,1768511446585,-578.20924308,0.00022905,2]
[402077591,1768511446595,-481.54757025,0.00022905,2]
[402077592,1768511446605,-431.42848765,0.00022906,2]
[402077593,1768511446615,-209.40437684,0.00022906,2]
[402077594,1768511446624,-2610.07152747,0.00022918,20]
[402077595,1768511446634,-1263.0,0.00023095,2]
[402077596,1768511446644,-492.0141556,0.00023095,2]
[402077597,1768511446654,-19134.12399712,0.00023321,2]
[402077598,1768511446663,-195.59,0.00023385,2]
[402077599,1768511446673,-233.43,0.00023385,2]
[402077600,1768511446682,-8566.0,0.0002344,2]
[402077601,1768511446691,-170.24735948,0.00023454,2]
[402077602,1768511446701,-217.15233878,0.00023454,2]
[402077603,1768511446711,-1152.0,0.00023468,2]
[402077604,1768511446720,-1000.0,0.0002353,2]
[402077605,1768511446729,-1404.0,0.000236,3]
[402077606,1768511446739,-847.86320749,0.00023905,2]
[402077607,1768511446748,-4609.0,0.00023941,2]
[402077608,1768511446758,-225.18697532,0.00024002,2]
[402077609,1768511446767,-1600.0,0.00024013,2]
[402077610,1768511446777,-170.28,0.00024082,2]
[402077611,1768511446791,-5533.0,0.000242,5]
[402077612,1768511446801,-2610.07152747,0.00024235,24]
[402077613,1768511446811,-691.39774486,0.00024273,2]
[402077614,1768511446821,-233.51889341,0.0002455,2]
[402077615,1768511446832,-500.0,0.0002463,2]
[402077616,1768511446842,-1000.0,0.00024658,2]
[402077617,1768511446852,-500.0,0.00024685,2]
[402077618,1768511446862,-163.9596246,0.00024773,2]
[402077619,1768511446872,-1399.3,0.0002482,2]
[402077620,1768511446882,-25513.80877808,0.00024928,2]
[402077621,1768511446891,-151.0,0.00025024,7]
[402077622,1768511446901,-19134.12399712,0.00025036,2]
[402077623,1768511446911,-242.15909246,0.00025098,2]
[402077624,1768511446922,-300.0,0.00025272,10]
[402077625,1768511446932,-151.0,0.00025273,3]
[402077626,1768511446942,-151.0,0.00025273,3]
[402077627,1768511446951,-1263.0,0.00025273,3]
[402077628,1768511446961,-151.0,0.00025273,3]
[402077629,1768511446971,-151.0,0.00025273,3]
[402077630,1768511446980,-1263.0,0.00025273,3]
[402077631,1768511446991,-841.0,0.00025273,3]
[402077632,1768511447001,-151.0,0.00025273,3]
[402077633,1768511447010,-151.0,0.00025273,3]
[402077634,1768511447020,-1263.0,0.00025273,3]
[402077635,1768511447030,-841.0,0.00025273,3]
[402077636,1768511447039,-151.0,0.00025273,3]
[402077637,1768511447050,-151.0,0.00025273,3]
[402077638,1768511447060,-1263.0,0.00025273,3]
[402077639,1768511447069,-841.0,0.00025273,3]
[402077640,1768511447079,-151.0,0.00025273,3]
[402077641,1768511447088,-151.0,0.00025273,3]
[402077642,1768511447098,-1263.0,0.00025273,3]
[402077643,1768511447107,-151.0,0.00025273,3]
[402077644,1768511447116,-151.0,0.00025273,3]
[402077645,1768511447127,-1263.0,0.00025273,3]
[402077646,1768511447136,-155.0,0.00025273,3]
[402077647,1768511447146,-151.0,0.00025273,3]
[402077648,1768511447155,-1263.0,0.00025273,3]
[402077649,1768511447169,-151.0,0.00025273,3]
[402077650,1768511447178,-155.0,0.00025273,3]
[402077651,1768511447187,-151.0,0.00025273,3]
[402077652,1768511447197,-1263.0,0.00025273,3]
[402077653,1768511447207,-151.0,0.00025273,3]
[402077654,1768511447217,-155.0,0.00025273,3]
[402077655,1768511447226,-151.0,0.00025273,3]
[402077656,1768511447235,-1263.0,0.00025273,3]
[402077657,1768511447245,-151.0,0.00025273,3]
[402077658,1768511447255,-155.0,0.00025273,3]
[402077659,1768511447265,-151.0,0.00025273,3]
[402077660,1768511447274,-1263.0,0.00025273,3]
[402077661,1768511447283,-151.0,0.00025273,3]
[402077662,1768511447293,-151.0,0.00025273,3]
[402077663,1768511447302,-155.0,0.00025273,3]
[402077664,1768511447311,-1263.0,0.00025273,3]
[402077665,1768511447321,-151.0,0.00025273,3]
[402077666,1768511447330,-151.0,0.00025273,3]
[402077667,1768511447339,-155.0,0.00025273,3]
[402077668,1768511447349,-1263.0,0.00025273,3]
[402077669,1768511447360,-151.0,0.00025273,3]
[402077670,1768511447374,-151.0,0.00025273,3]
[402077671,1768511447383,-155.0,0.00025273,3]
[402077672,1768511447393,-841.0,0.00025273,3]
[402077673,1768511447402,-1263.0,0.00025273,3]
[402077674,1768511447412,-1263.0,0.00025273,3]
[402077675,1768511447421,-841.0,0.00025273,3]
[402077676,1768511447430,-1263.0,0.00025273,3]
[402077677,1768511447439,-841.0,0.00025273,3]
[402077678,1768511447449,-1263.0,0.00025273,3]
[402077679,1768511447458,-382.1685414,0.00025273,3]
[402077680,1768511447468,-1263.0,0.00025273,3]
[402077681,1768511447477,-151.0,0.00025273,3]
[402077682,1768511447487,-151.0,0.00025273,3]
[402077683,1768511447496,-155.0,0.00025273,3]
[402077684,1768511447506,-232.14100315,0.00025273,3]
[402077685,1768511447515,-152.0,0.00025273,3]
[402077686,1768511447524,-152.0,0.00025273,3]
[402077687,1768511447534,-152.0,0.00025273,3]
[402077688,1768511447543,-151.0,0.00025273,3]
[402077689,1768511447553,-1263.0,0.00025273,3]
[402077690,1768511447567,-152.0,0.00025273,3]
[402077691,1768511447576,-151.0,0.00025273,3]
[402077692,1768511447590,-151.0,0.00025273,3]
[402077693,1768511447600,-1263.0,0.00025273,3]
[402077694,1768511447609,-152.0,0.00025273,3]
[402077695,1768511447620,-151.0,0.00025273,3]
[402077696,1768511447630,-1263.0,0.00025273,3]
[402077697,1768511447639,-152.0,0.00025273,3]
[402077698,1768511447649,-151.0,0.00025273,3]
[402077699,1768511447659,-1263.0,0.00025273,3]
[402077700,1768511447668,-152.0,0.00025273,3]
[402077701,1768511447678,-151.0,0.00025273,3]
[402077702,1768511447688,-1263.0,0.00025273,3]
[402077703,1768511447697,-152.0,0.00025273,3]
[402077704,1768511447707,-151.0,0.00025273,3]
[402077705,1768511447717,-1263.0,0.00025273,3]
[402077706,1768511447727,-151.0,0.00025273,3]
[402077707,1768511447736,-1263.0,0.00025273,3]
[402077708,1768511447747,-290.56171122,0.00025273,3]
[402077709,1768511447757,-151.0,0.00025273,3]
[402077710,1768511447770,-1263.0,0.00025273,3]
[402077711,1768511447780,-151.0,0.00025273,3]
[402077712,1768511447799,-152.0,0.00025273,3]
[402077713,1768511447818,-1263.0,0.00025273,3]
[402077714,1768511447837,-151.0,0.00025273,3]
[402077715,1768511448204,-152.0,0.00025273,3]
[402077716,1768511448213,-1263.0,0.00025273,3]
[402077717,1768511448223,-151.0,0.00025273,3]
[402077718,1768511448232,-152.0,0.00025273,3]
[402077719,1768511448241,-1263.0,0.00025273,3]
[402077720,1768511448251,-151.0,0.00025273,3]
[402077721,1768511448261,-152.0,0.00025273,3]
[402077722,1768511448280,-1263.0,0.00025273,3]
[402077723,1768511448293,-151.0,0.00025273,3]
[402077724,1768511448305,-152.0,0.00025273,3]
[402077725,1768511448314,-1263.0,0.00025273,3]
[402077726,1768511448324,-151.0,0.00025273,3]
[402077727,1768511448333,-152.0,0.00025273,3]
[402077728,1768511448342,-1263.0,0.00025273,3]
[402077729,1768511448353,-151.0,0.00025273,3]
[402077730,1768511448363,-152.0,0.00025273,3]
[402077731,1768511448374,-1263.0,0.00025273,3]
[402077732,1768511448383,-151.0,0.00025273,3]
[402077733,1768511448392,-272.6993399,0.00025273,3]
[402077734,1768511448401,-1263.0,0.00025273,3]
[402077735,1768511448411,-151.0,0.00025273,3]
[402077736,1768511448420,-1263.0,0.00025273,3]
[402077737,1768511448430,-151.0,0.00025273,3]
[402077738,1768511448440,-151.0,0.00025273,3]
[402077739,1768511448451,-1263.0,0.00025273,3]
[402077740,1768511448461,-151.0,0.00025273,3]
[402077741,1768511448471,-1263.0,0.00025273,3]
[402077742,1768511448481,-151.0,0.00025273,3]
[402077743,1768511448490,-1263.0,0.00025273,3]
[402077744,1768511448500,-151.0,0.00025273,3]
[402077745,1768511448509,-1263.0,0.00025273,3]
[402077746,1768511448518,-151.0,0.00025273,3]
[402077747,1768511448527,-1263.0,0.00025273,3]
[402077748,1768511448538,-151.0,0.00025273,3]
[402077749,1768511448547,-151.0,0.00025273,3]
[402077750,1768511448556,-151.0,0.00025273,3]
[402077751,1768511448566,-151.0,0.00025273,3]
[402077752,1768511448575,-158.0,0.00025273,3]
[402077753,1768511448585,-151.0,0.00025273,3]
[402077754,1768511448595,-158.0,0.00025273,3]
[402077755,1768511448604,-151.0,0.00025273,3]
[402077756,1768511448614,-158.0,0.00025273,3]
[402077757,1768511448623,-158.0,0.00025273,3]
[402077758,1768511448633,-158.0,0.00025273,3]
[402077759,1768511448642,-151.0,0.00025273,3]
[402077760,1768511448652,-151.0,0.00025273,3]
[402077761,1768511448661,-151.0,0.00025273,3]
[402077762,1768511448670,-158.0,0.00025273,3]
[402077763,1768511448680,-151.0,0.00025273,3]
[402077764,1768511448689,-162.75894417,0.00025273,3]
[402077765,1768511448698,-151.0,0.00025273,3]
[402077766,1768511448708,-151.0,0.00025273,3]
[402077767,1768511448718,-151.0,0.00025273,3]
[402077768,1768511448727,-151.0,0.00025273,3]
[402077769,1768511448737,-151.0,0.00025273,3]
[402077770,1768511448746,-151.0,0.00025273,3]
[402077771,1768511448755,-151.0,0.00025273,3]
[402077772,1768511448765,-202.2540792,0.00025273,3]
[402077773,1768511448774,-716.75732672,0.00025385,2]
[402077774,1768511448784,-4995.7,0.00025453,2]
[402077775,1768511448793,-170.28,0.00025498,2]
[402077776,1768511448803,-2610.07152747,0.00025552,29]
[402077777,1768511448816,-716.97946142,0.00025642,2]
[402077778,1768511448826,-251.11897888,0.00025646,2]
[402077779,1768511448835,-1613.0,0.00025646,2]
[402077780,1768511448846,-1000.0,0.00025669,2]
[402077781,1768511448856,-300.0,0.0002586,10]
[402077782,1768511448866,-151.0,0.00025861,7]
[402077783,1768511448876,-223.155197,0.00025861,7]
[402077784,1768511448886,-223.155197,0.00025861,7]
[402077785,1768511448896,-223.155197,0.00025861,7]
[402077786,1768511448906,-223.155197,0.00025861,7]
[402077787,1768511448915,-260.4103811,0.00026194,2]
[402077788,1768511448926,-6453.0,0.00026294,2]
[402077789,1768511448935,-1000.0,0.00026486,2]
[402077790,1768511448945,-327.06791331,0.00026742,2]
[402077791,1768511448960,-19134.12399712,0.00026752,2]
[402077792,1768511448982,-1204.31636891,0.00026868,33]
[402077793,1768511448992,-1399.3,0.00026991,2]
[402077794,1768511449003,-427.83401372,0.00027011,2]
[402077795,1768511449014,-25513.80877808,0.00027045,2]
[402077796,1768511449023,-506.0,0.00027137,2]
[402077797,1768511449034,-173.12624247,0.00027393,2]
[402077798,1768511449044,-500.0,0.00027397,20]
[402077799,1768511449060,-200.0,0.00027526,2]
[402077800,1768511449070,-200.0,0.00027597,2]
[402077801,1768511449081,-847.86320749,0.0002763,2]
[402077802,1768511449091,-200.0,0.00027801,2]
[402077803,1768511449100,-2258.0,0.00028027,2]
[402077804,1768511449110,-200.0,0.00028079,2]
[402077805,1768511449120,-1204.31636891,0.00028185,38]
[402077806,1768511449130,-200.0,0.0002836,2]
[402077807,1768511449140,-19134.12399712,0.00028468,2]
[402077808,1768511449150,-150.0,0.0002863,2]
[402077809,1768511449159,-200.0,0.00028644,2]
[402077810,1768511449169,-970.06353612,0.00028661,2]
[402077811,1768511449191,-3547.34800982,0.00028661,2]
[402077812,1768511449201,-151.0,0.00028877,7]
[402077813,1768511449211,-9035.0,0.00028878,2]
[402077814,1768511449221,-716.75732672,0.00029127,2]
[402077815,1768511449231,-1399.3,0.00029163,2]
[402077816,1768511449240,-21494.89164078,0.00029163,2]
[402077817,1768511449914,-4018.9171373,0.00029163,2]
[402077818,1768511449930,-233.42,0.00029357,2]
[402077819,1768511449939,-627.0,0.000295,2]
[402077820,1768511449949,-1204.31636891,0.00029502,42]
[402077821,1768511449958,-544.437336,0.00029534,15]
[402077822,1768511449968,-2769.309799,0.00029534,15]
[402077823,1768511449977,-1065.996452,0.00029534,15]
[402077824,1768511449991,-200.0,0.0002963,2]
[402077825,1768511450000,-200.0,0.0002963,2]
[402077826,1768511450010,-6556.0,0.00029856,2]
[402077827,1768511450021,-2438.0,0.00029856,2]
[402077828,1768511450031,-711.931,0.00029856,2]
[402077829,1768511450041,-150.0,0.00029863,60]
[402077830,1768511450055,-500.0,0.00029863,60]
[402077831,1768511450065,-500.0,0.00029863,60]
[402077832,1768511450075,-500.0,0.00029863,60]
[402077833,1768511450084,-2492.0,0.00029863,60]
[402077834,1768511450094,-153.6561555,0.00029863,60]
[402077835,1768511450104,-150.0,0.00029863,60]
[402077836,1768511450113,-150.0,0.00029863,60]
[402077837,1768511450125,-150.0,0.00029863,60]
[402077838,1768511450135,-500.0,0.00029863,60]
[402077839,1768511450144,-153.91669423,0.00029918,60]
[402077840,1768511450154,-500.0,0.00029918,60]
[402077841,1768511450164,-500.0,0.00029918,60]
[402077842,1768511450173,-500.0,0.00029918,60]
[402077843,1768511450183,-2492.0,0.00029918,60]
[402077844,1768511450194,-150.0,0.00029918,60]
[402077845,1768511450204,-150.0,0.00029918,60]
[402077846,1768511450214,-500.0,0.00029918,60]
[402077847,1768511450224,-200.0,0.00029926,2]
[402077848,1768511450234,-200.0,0.00029926,2]
[402077849,1768511450245,-500.0,0.00029973,60]
[402077850,1768511450255,-456.13980161,0.00029973,60]
[402077851,1768511450264,-500.0,0.00029973,60]
[402077852,1768511450274,-2492.0,0.00029973,60]
[402077853,1768511450284,-150.0,0.00029973,60]
[402077854,1768511450293,-150.0,0.00029973,60]
[402077855,1768511450303,-500.0,0.00029973,60]
[402077856,1768511450313,-500.0,0.00030027,60]
[402077857,1768511450323,-500.0,0.00030027,60]
[402077858,1768511450332,-2492.0,0.00030027,60]
[402077859,1768511450342,-150.0,0.00030027,60]
[402077860,1768511450351,-150.0,0.00030027,60]
[402077861,1768511450360,-500.0,0.00030027,60]
[402077862,1768511450373,-500.0,0.00030082,60]
[402077863,1768511450383,-500.0,0.00030082,60]
[402077864,1768511450392,-2492.0,0.00030082,60]
[402077865,1768511450402,-150.0,0.00030082,60]
[402077866,1768511450412,-150.0,0.00030082,60]
[402077867,1768511450422,-500.0,0.00030082,60]
[402077868,1768511450431,-211.14422192,0.00030137,60]
[402077869,1768511450441,-500.0,0.00030137,60]
[402077870,1768511450450,-2492.0,0.00030137,60]
[402077871,1768511450461,-198.70747734,0.00030137,60]
[402077872,1768511450471,-170.59548745,0.00030137,60]
[402077873,1768511450480,-211.95611934,0.00030137,60]
[402077874,1768511450490,-1378.94535656,0.00030137,120]
[402077875,1768511450500,-19134.12399712,0.00030184,2]
[402077876,1768511450510,-584.7552737,0.00030192,60]
[402077877,1768511450519,-2492.0,0.00030192,60]
[402077878,1768511450529,-200.0,0.00030226,2]
[402077879,1768511450538,-200.0,0.00030226,2]
[402077880,1768511450547,-2492.0,0.00030247,60]
[402077881,1768511450556,-2492.0,0.00030301,60]
[402077882,1768511450566,-2492.0,0.00030356,60]
[402077883,1768511450575,-223.7268183,0.00030367,120]
[402077884,1768511450585,-534.60267612,0.00030367,120]
[402077885,1768511450594,-174.0,0.00030397,120]
[402077886,1768511450605,-2492.0,0.00030411,60]
[402077887,1768511450614,-2492.0,0.00030466,60]
[402077888,1768511450623,-2492.0,0.00030521,60]
[402077889,1768511450633,-200.0,0.00030528,2]
[402077890,1768511450643,-200.0,0.00030528,2]
[402077891,1768511450652,-2492.0,0.00030575,60]
[402077892,1768511450661,-256.0,0.00030629,2]
[402077893,1768511450671,-2492.0,0.0003063,60]
[402077894,1768511450680,-2492.0,0.00030685,60]
[402077895,1768511450689,-173.0,0.0003073,120]
[402077896,1768511450698,-2492.0,0.0003074,60]
[402077897,1768511450708,-1617.01,0.0003074,14]
[402077898,1768511450717,-2492.0,0.00030795,60]
[402077899,1768511450727,-1204.31636891,0.00030819,46]
[402077900,1768511450737,-200.0,0.00030833,2]
[402077901,1768511450746,-200.0,0.00030833,2]
[402077902,1768511450758,-2492.0,0.00030849,60]
[402077903,1768511450768,-2492.0,0.00030904,60]
[402077904,1768511450777,-2492.0,0.00030959,60]
[402077905,1768511450787,-1845.75507792,0.00031,120]
[402077906,1768511450796,-2492.0,0.00031014,60]
[402077907,1768511450806,-2492.0,0.00031068,60]
[402077908,1768511450816,-2492.17984053,0.00031123,60]
[402077909,1768511450826,-2310.04596964,0.0003121,2]
[402077910,1768511450836,-1146.54627647,0.00031281,2]
[402077911,1768511450859,-640.58000002,0.00031281,2]
[402077912,1768511450883,-910.1,0.00031281,2]
[402077913,1768511452335,-1.7e-07,0.00031281,2]
[402077914,1768511452347,-3436.85276673,0.00031281,2]
[402077915,1768511454005,-151.81362469,0.00016656,2]
[402077916,1768511454014,-19379.72973469,0.00031281,2]
[402077917,1768511454024,-1399.3,0.00031334,2]
[402077918,1768511454033,-847.86320749,0.00031355,2]
[402077919,1768511454043,-150.0,0.00031493,2]
[402077920,1768511454058,-3791.75956438,0.000315,120]
[402077921,1768511454067,-1500.0,0.000316,2]
[402077922,1768511454077,-11163.0,0.00031716,3]
[402077923,1768511454087,-19134.12399712,0.000319,2]
[402077924,1768511454097,-174.0,0.00031917,120]
[402077925,1768511454106,-4881.47967248,0.00032,120]
[402077926,1768511454115,-1796.97075244,0.00032,120]
[402077927,1768511454126,-150.139,0.000321,2]
[402077928,1768511454137,-1331.0,0.000321,2]
[402077929,1768511454147,-1204.31636891,0.00032136,51]
[402077930,1768511454156,-173.0,0.00032267,120]
[402077931,1768511454166,-980.0,0.000324,2]
[402077932,1768511454175,-306.0,0.000324,2]
[402077933,1768511454184,-195.49413141,0.00032488,2]
[402077934,1768511454193,-191.15148527,0.000328,120]
[402077935,1768511454203,-227.783,0.00032856,2]
[402077936,1768511454212,-566.0,0.00032856,2]
[402077937,1768511454222,-716.75732672,0.0003287,2]
[402077938,1768511454231,-500.0,0.00032876,30]
[402077939,1768511454241,-500.0,0.00032876,30]
[402077940,1768511454249,-441.95808847,0.00032876,30]
[402077941,1768511454259,-162.380719,0.00032877,2]
[402077942,1768511454268,-152.93,0.00032877,30]
[402077943,1768511454277,-500.0,0.00032877,5]
[402077944,1768511454286,-252.558959,0.000329,7]
[402077945,1768511454296,-4682.86905411,0.00032924,30]
[402077946,1768511454305,-506.0,0.00033011,8]
[402077947,1768511454314,-25513.80877808,0.00033398,2]
[402077948,1768511454323,-1000.0,0.00033425,5]
[402077949,1768511454332,-1204.31636891,0.00033452,55]
[402077950,1768511454342,-152.7,0.0003349,120]
[402077951,1768511454351,-1399.3,0.00033506,5]
[402077952,1768511454360,-2500.0,0.000338,5]
[402077953,1768511454369,-1227.42,0.00033841,2]
[402077954,1768511454378,-1015.29123734,0.00033973,5]
[402077955,1768511454387,-150.0,0.00034356,2]